[Event "4NCL 2021-22"]
[Site "England"]
[Date "2022.02.13"]
[Round "4.53"]
[White "White, Nigel"]
[Black "Duncan, Chris R"]
[Result "1/2-1/2"]
[ECO "B76"]
[WhiteElo "1997"]
[BlackElo "2252"]
[Annotator "ChessBase"]
[PlyCount "76"]
[EventDate "2021.11.27"]
[EventType "team-tourn"]
[EventCountry "ENG"]
[SourceTitle "playchess.com"]
[Source "ChessBase"]
[SourceQuality "1"]
[TimeControl "40/6000+30:3000+30"]

1. e4 {[%emt 0:00:03]} c5 {[%emt 0:09:50]} 2. Nf3 {[%emt 0:00:15]} d6 {[%emt 0:00:09]} 3. d4 {[%emt 0:00:08]} cxd4 {[%emt 0:00:06]} 4. Nxd4 {[%emt 0:00:01]} Nf6 {[%emt 0:00:06]} 5. Nc3 {[%emt 0:00:04]} g6 {[%emt 0:00:08]} 6. Be3 {[%emt 0:00:03]} Bg7 {[%emt 0:00:05]} 7. f3 {[%emt 0:00:05]} Nc6 {[%emt 0:00:04]} 8. Qd2 {[%emt 0:00:04]} O-O {[%emt 0:00:07]} 9. g4 {[%emt 0:00:13]} Nxd4 {[%emt 0:16:49]} 10. Bxd4 {[%emt 0:01:44]} Be6 {[%emt 0:00:07]} 11. Nd5 {[%emt 0:08:46]} Bxd5 {[%emt 0:02:31]} 12. exd5 {[%emt 0:00:20]} Qd7 {[%emt 0:04:13]} 13. O-O-O {[%emt 0:03:26]} Qa4 {[%emt 0:01:09]} 14. Kb1 {[%emt 0:01:44]} Rfc8 {[%emt 0:01:05]} 15. h4 {[%emt 0:07:17]} Rc7 {[%emt 0:08:53]} 16. b3 {[%emt 0:19:59]} Qa3 {[%emt 0:01:58]} 17. g5 {[%emt 0:01:44]} Nh5 {[%emt 0:02:45]} 18. Bxg7 {[%emt 0:00:08]} Kxg7 {[%emt 0:04:00]} 19. c4 {[%emt 0:04:52]} a5 {[%emt 0:03:20]} 20. Qb2+ {[%emt 0:04:52]} Qxb2+ {[%emt 0:00:07]} 21. Kxb2 {[%emt 0:00:01]} a4 {[%emt 0:01:51]} 22. Bd3 {[%emt 0:07:03]} b6 {[%emt 0:08:07]} 23. Rhe1 {[%emt 0:08:18]} Kf8 {[%emt 0:01:00]} 24. Rc1 {[%emt 0:06:04]} Kg7 {[%emt 0:03:46]} 25. Re3 {[%emt 0:01:39]} h6 {[%emt 0:00:48]} 26. Rce1 {[%emt 0:02:17]} Nf4 {[%emt 0:03:33]} 27. Bf1 {[%emt 0:00:04]} hxg5 {[%emt 0:03:23]} 28. hxg5 {[%emt 0:02:23]} Kf8 {[%emt 0:07:00]} 29. Rd1 {[%emt 0:02:35]} Rca7 {[%emt 0:03:09]} 30. b4 {[%emt 0:01:58]} Rc7 {[%emt 0:01:35]} 31. Rd4 {[%emt 0:01:02]} Nh5 {[%emt 0:00:51]} 32. Bd3 {[%emt 0:02:40]} Ng3 {[%emt 0:07:41]} 33. Ka3 {[%emt 0:03:54]} Kg7 {[%emt 0:00:43]} 34. Rh4 {[%emt 0:03:42]} Rac8 {[%emt 0:06:47]} 35. Kxa4 {[%emt 0:03:32]} Ra8+ {[%emt 0:00:15]} 36. Kb5 {[%emt 0:00:17]} Rxa2 {[%emt 0:00:31]} 37. f4 {[%emt 0:03:27]} Nh5 {[%emt 0:00:18]} 38. Be2 {[%emt 0:00:03]} Rb2 {[%emt 0:04:02]} 1/2-1/2

[Event "4NCL 2021-22"]
[Site "England"]
[Date "2022.02.13"]
[Round "4.54"]
[White "Webb, Laurence E"]
[Black "Stimpson, Philip M"]
[Result "1-0"]
[ECO "D10"]
[WhiteElo "2256"]
[BlackElo "1956"]
[Annotator "NA"]
[PlyCount "39"]
[EventDate "2021.11.27"]
[EventType "team-tourn"]
[EventCountry "ENG"]
[SourceTitle "playchess.com"]
[Source "ChessBase"]
[SourceQuality "1"]
[TimeControl "40/6000+30:3000+30"]

1. d4 {[%emt 0:00:04]} d5 {[%emt 0:00:07]} 2. c4 {[%emt 0:00:04]} c6 {[%emt 0:00:05]} 3. cxd5 {[%emt 0:00:10]} cxd5 {[%emt 0:00:12]} 4. Bf4 {[%emt 0:00:03]} Nc6 {[%emt 0:00:39]} 5. e3 {[%emt 0:00:19]} Qb6 {[%emt 0:01:45]} 6. Qb3 {[%emt 0:04:30]} Qxb3 {[%emt 0:01:11]} 7. axb3 {[%emt 0:00:02]} e6 {[%emt 0:05:10]} 8. Nc3 {[%emt 0:01:21]} Bb4 {[%emt 0:00:19]} 9. Bd3 {[%emt 0:02:53]} Nf6 {[%emt 0:01:05]} 10. Nf3 {[%emt 0:01:24]} O-O {[%emt 0:03:31]} 11. h4 {[%emt 0:07:32]} Nh5 {[%emt 0:15:26]} 12. Bh2 {[%emt 0:02:40]} f5 {[%emt 0:01:13]} 13. Ne5 {[%emt 0:02:32]} a5 {[%emt 0:09:32]} 14. Be2 {[%emt 0:12:01]} Nf6 {[%emt 0:00:47]} 15. O-O {[%emt 0:00:43]} Ne4 {[%emt 0:01:35]} 16. Nxe4 {[%emt 0:02:10]} fxe4 {[%emt 0:02:03]} 17. Rac1 {[%emt 0:01:25]} Nxe5 {[%emt 0:01:24]} 18. Bxe5 {[%emt 0:02:26]} Rd8 {[%emt 0:02:20]} 19. Bg4 {[%emt 0:07:27]} Bd7 {[%emt 0:00:58]} 20. Rc7 {[%emt 0:02:19]} 1-0

[Event "4NCL 2021-22"]
[Site "England"]
[Date "2022.02.13"]
[Round "4.55"]
[White "Shepley, Julien M"]
[Black "Ledger, Dave J"]
[Result "1/2-1/2"]
[ECO "C27"]
[WhiteElo "1865"]
[BlackElo "2148"]
[Annotator "NA"]
[PlyCount "75"]
[EventDate "2021.11.27"]
[EventType "team-tourn"]
[EventCountry "ENG"]
[SourceTitle "playchess.com"]
[Source "ChessBase"]
[SourceQuality "1"]
[TimeControl "40/6000+30:3000+30"]

1. e4 {[%emt 0:00:08]} e5 {[%emt 0:00:13]} 2. Nc3 {[%emt 0:00:08]} Nf6 {[%emt 0:00:22]} 3. Bc4 {[%emt 0:00:21]} Nxe4 {[%emt 0:01:52]} 4. Qh5 {[%emt 0:00:18]} Nd6 {[%emt 0:00:37]} 5. Qxe5+ {[%emt 0:01:09]} Qe7 {[%emt 0:02:40]} 6. Qxe7+ {[%emt 0:00:31]} Bxe7 {[%emt 0:00:04]} 7. Bb3 {[%emt 0:00:07]} Nf5 {[%emt 0:05:57]} 8. Nf3 {[%emt 0:00:57]} c6 {[%emt 0:00:57]} 9. O-O {[%emt 0:02:43]} d5 {[%emt 0:00:54]} 10. d4 {[%emt 0:00:55]} O-O {[%emt 0:02:43]} 11. Re1 {[%emt 0:01:41]} Bf6 {[%emt 0:02:46]} 12. Ne2 {[%emt 0:00:24]} a5 {[%emt 0:03:23]} 13. a4 {[%emt 0:03:36]} h6 {[%emt 0:08:04]} 14. c3 {[%emt 0:01:10]} g5 {[%emt 0:01:56]} 15. Bc2 {[%emt 0:03:53]} Re8 {[%emt 0:10:23]} 16. Bd2 {[%emt 0:03:14]} Be6 {[%emt 0:03:17]} 17. Ng3 {[%emt 0:00:45]} Ng7 {[%emt 0:03:51]} 18. Nf5 {[%emt 0:04:29]} Nxf5 {[%emt 0:03:34]} 19. Bxf5 {[%emt 0:00:10]} Nd7 {[%emt 0:00:41]} 20. Bc2 {[%emt 0:01:09]} g4 {[%emt 0:17:36]} 21. Ne5 {[%emt 0:00:42]} Nxe5 {[%emt 0:01:57]} 22. dxe5 {[%emt 0:00:27]} Bg5 {[%emt 0:00:37]} 23. Rad1 {[%emt 0:03:30]} Re7 {[%emt 0:02:30]} 24. f4 {[%emt 0:05:03]} gxf3 {[%emt 0:00:29]} 25. gxf3 {[%emt 0:00:10]} Bh4 {[%emt 0:08:22]} 26. Bxh6 {[%emt 0:02:11]} Kh8 {[%emt 0:04:37]} 27. Re2 {[%emt 0:01:57]} Bh3 {[%emt 0:01:46]} 28. Kh1 {[%emt 0:00:56]} Re6 {[%emt 0:07:39]} 29. Be3 {[%emt 0:03:07]} Rae8 {[%emt 0:02:51]} 30. Rd4 {[%emt 0:06:33]} Bd8 {[%emt 0:00:54]} 31. f4 {[%emt 0:02:14]} Bg4 {[%emt 0:01:21]} 32. Rf2 {[%emt 0:00:48]} Bh4 {[%emt 0:01:19]} 33. Rf1 {[%emt 0:00:15]} Rg8 {[%emt 0:03:33]} 34. Rd2 {[%emt 0:03:12]} Bh3 {[%emt 0:00:58]} 35. Rf3 {[%emt 0:00:53]} Bg4 {[%emt 0:00:25]} 36. Rf1 {[%emt 0:00:05]} Bh3 {[%emt 0:02:27]} 37. Rf3 {[%emt 0:00:10]} Bg4 {[%emt 0:00:18]} 38. Rf1 {[%emt 0:00:06]} 1/2-1/2

[Event "4NCL 2021-22"]
[Site "England"]
[Date "2022.02.13"]
[Round "4.56"]
[White "Varney, Zoe"]
[Black "Golding, William"]
[Result "1-0"]
[ECO "B01"]
[WhiteElo "2041"]
[BlackElo "1686"]
[Annotator "NA"]
[PlyCount "51"]
[EventDate "2021.11.27"]
[EventType "team-tourn"]
[EventCountry "ENG"]
[SourceTitle "playchess.com"]
[Source "ChessBase"]
[SourceQuality "1"]
[TimeControl "40/6000+30:3000+30"]

1. e4 {[%emt 0:00:03]} d5 {[%emt 0:00:08]} 2. exd5 {[%emt 0:00:03]} Qxd5 {[%emt 0:00:09]} 3. Nc3 {[%emt 0:00:04]} Qa5 {[%emt 0:00:08]} 4. d4 {[%emt 0:00:08]} c6 {[%emt 0:00:10]} 5. Bc4 {[%emt 0:00:06]} Nf6 {[%emt 0:00:21]} 6. Bd2 {[%emt 0:00:14]} Qc7 {[%emt 0:01:27]} 7. Nf3 {[%emt 0:00:49]} Bg4 {[%emt 0:00:25]} 8. h3 {[%emt 0:01:27]} Bh5 {[%emt 0:00:22]} 9. g4 {[%emt 0:01:50]} Bg6 {[%emt 0:00:55]} 10. Ne5 {[%emt 0:01:30]} e6 {[%emt 0:03:55]} 11. Qe2 {[%emt 0:09:06]} Nbd7 {[%emt 0:02:18]} 12. f4 {[%emt 0:11:58]} O-O-O {[%emt 0:03:47]} 13. O-O-O {[%emt 0:05:25]} Nxe5 {[%emt 0:04:41]} 14. dxe5 {[%emt 0:00:56]} Nd5 {[%emt 0:01:34]} 15. Rhf1 {[%emt 0:04:25]} h6 {[%emt 0:02:07]} 16. f5 {[%emt 0:03:40]} Bh7 {[%emt 0:01:55]} 17. Bxd5 {[%emt 0:04:52]} cxd5 {[%emt 0:06:14]} 18. Nb5 {[%emt 0:02:50]} Qd7 {[%emt 0:01:33]} 19. Nxa7+ {[%emt 0:09:26]} Kb8 {[%emt 0:00:40]} 20. Nb5 {[%emt 0:00:13]} exf5 {[%emt 0:03:42]} 21. e6 {[%emt 0:02:06]} fxe6 {[%emt 0:05:48]} 22. Bf4+ {[%emt 0:00:20]} Ka8 {[%emt 0:01:00]} 23. Rd4 {[%emt 0:01:30]} b6 {[%emt 0:14:52]} 24. Ra4+ {[%emt 0:00:15]} Kb7 {[%emt 0:00:06]} 25. Ra7+ {[%emt 0:00:06]} Kc6 {[%emt 0:00:05]} 26. Nd4+ {[%emt 0:01:01]} 1-0

[Event "4NCL 2021-22"]
[Site "England"]
[Date "2022.02.13"]
[Round "4.57"]
[White "Harakis, Alexis M"]
[Black "Tanmay Chopra"]
[Result "1-0"]
[ECO "D35"]
[WhiteElo "2264"]
[BlackElo "2313"]
[Annotator "NA"]
[PlyCount "55"]
[EventDate "2021.11.27"]
[EventType "team-tourn"]
[EventCountry "ENG"]
[SourceTitle "playchess.com"]
[Source "ChessBase"]
[SourceQuality "1"]
[TimeControl "40/6000+30:3000+30"]

1. d4 {[%emt 0:15:57]} d5 {[%emt 0:00:06]} 2. c4 {[%emt 0:00:10]} e6 {[%emt 0:00:20]} 3. Nc3 {[%emt 0:00:16]} Nf6 {[%emt 0:00:08]} 4. cxd5 {[%emt 0:00:27]} exd5 {[%emt 0:00:05]} 5. Bg5 {[%emt 0:00:05]} Be7 {[%emt 0:00:07]} 6. e3 {[%emt 0:00:09]} c6 {[%emt 0:00:38]} 7. Bd3 {[%emt 0:00:08]} h6 {[%emt 0:00:19]} 8. Bf4 {[%emt 0:00:54]} O-O {[%emt 0:08:24]} 9. Nf3 {[%emt 0:09:10]} Nbd7 {[%emt 0:01:44]} 10. h3 {[%emt 0:00:43]} c5 {[%emt 0:00:42]} 11. O-O {[%emt 0:01:20]} Re8 {[%emt 0:08:23]} 12. Nb5 {[%emt 0:01:05]} Nf8 {[%emt 0:04:49]} 13. Nc7 {[%emt 0:02:08]} Bd7 {[%emt 0:00:33]} 14. Nxa8 {[%emt 0:00:28]} Qxa8 {[%emt 0:00:03]} 15. dxc5 {[%emt 0:00:41]} Bxc5 {[%emt 0:00:11]} 16. Rc1 {[%emt 0:00:58]} Ne6 {[%emt 0:01:23]} 17. Be5 {[%emt 0:00:21]} Qd8 {[%emt 0:00:04]} 18. Nd4 {[%emt 0:00:49]} Bxd4 {[%emt 0:02:29]} 19. exd4 {[%emt 0:00:54]} Ng5 {[%emt 0:00:43]} 20. Re1 {[%emt 0:01:35]} Bc6 {[%emt 0:04:49]} 21. Bxf6 {[%emt 0:00:58]} Rxe1+ {[%emt 0:00:10]} 22. Qxe1 {[%emt 0:00:03]} Qxf6 {[%emt 0:00:10]} 23. Qe5 {[%emt 0:01:19]} Qd8 {[%emt 0:00:02]} 24. b4 {[%emt 0:01:24]} Ne6 {[%emt 0:04:44]} 25. b5 {[%emt 0:00:24]} Be8 {[%emt 0:00:03]} 26. a4 {[%emt 0:01:10]} Kf8 {[%emt 0:06:27]} 27. Bf5 {[%emt 0:00:35]} Ng5 {[%emt 0:02:51]} 28. Rc8 {[%emt 0:00:17]} 1-0

[Event "4NCL 2021-22"]
[Site "England"]
[Date "2022.02.13"]
[Round "4.58"]
[White "Bisby, Daniel L"]
[Black "Merriman, John"]
[Result "0-1"]
[ECO "C02"]
[WhiteElo "2296"]
[BlackElo "2261"]
[Annotator "ChessBase"]
[PlyCount "58"]
[EventDate "2021.11.27"]
[EventType "team-tourn"]
[EventCountry "ENG"]
[SourceTitle "playchess.com"]
[Source "ChessBase"]
[SourceQuality "1"]
[TimeControl "40/6000+30:3000+30"]

1. e4 {[%emt 0:09:17]} e6 {[%emt 0:00:50]} 2. d4 {[%emt 0:00:29]} d5 {[%emt 0:00:16]} 3. e5 {[%emt 0:00:33]} c5 {[%emt 0:00:07]} 4. c3 {[%emt 0:00:07]} Nc6 {[%emt 0:00:42]} 5. Nf3 {[%emt 0:00:54]} Qb6 {[%emt 0:00:32]} 6. Bd3 {[%emt 0:00:35]} cxd4 {[%emt 0:00:37]} 7. O-O {[%emt 0:01:03]} Bd7 {[%emt 0:03:37]} 8. Re1 {[%emt 0:03:04]} Rc8 {[%emt 0:06:39]} 9. a3 {[%emt 0:13:43]} a6 {[%emt 0:14:44]} 10. b4 {[%emt 0:09:01]} dxc3 {[%emt 0:05:28]} 11. Nxc3 {[%emt 0:00:37]} Nd4 {[%emt 0:23:59]} 12. Bb2 {[%emt 0:06:56]} Nxf3+ {[%emt 0:00:57]} 13. Qxf3 {[%emt 0:00:06]} Ne7 {[%emt 0:02:32]} 14. h4 {[%emt 0:01:41]} g6 {[%emt 0:04:44]} 15. Qf6 {[%emt 0:08:58]} Rg8 {[%emt 0:00:08]} 16. Rad1 {[%emt 0:03:21]} Bg7 {[%emt 0:06:18]} 17. Qf4 {[%emt 0:01:46]} Nf5 {[%emt 0:04:23]} 18. Bxf5 {[%emt 0:07:23]} gxf5 {[%emt 0:00:40]} 19. Re3 {[%emt 0:02:36]} Rc4 {[%emt 0:05:53]} 20. Qg5 {[%emt 0:11:34]} Rg4 {[%emt 0:08:45]} 21. Qh5 {[%emt 0:00:07]} Bf8 {[%emt 0:06:23]} 22. g3 {[%emt 0:17:05]} R8g6 {[%emt 0:03:15]} 23. Nxd5 {[%emt 0:01:09]} exd5 {[%emt 0:00:44]} 24. e6 {[%emt 0:00:41]} Bxe6 {[%emt 0:02:09]} 25. Rde1 {[%emt 0:01:44]} f4 {[%emt 0:02:32]} 26. Qe5 {[%emt 0:03:55]} fxe3 {[%emt 0:01:14]} 27. Qb8+ {[%emt 0:00:23]} Qd8 {[%emt 0:01:19]} 28. Qxb7 {[%emt 0:00:18]} exf2+ {[%emt 0:00:46]} 29. Kxf2 {[%emt 0:00:05]} Bd6 {[%emt 0:00:42]} 0-1

[Event "4NCL 2021-22"]
[Site "England"]
[Date "2022.02.13"]
[Round "4.59"]
[White "Ratnesan, Ranesh"]
[Black "Hill, Alistair"]
[Result "1-0"]
[ECO "E32"]
[WhiteElo "2258"]
[BlackElo "2236"]
[Annotator "ChessBase"]
[PlyCount "69"]
[EventDate "2021.11.27"]
[EventType "team-tourn"]
[EventCountry "ENG"]
[SourceTitle "playchess.com"]
[Source "ChessBase"]
[SourceQuality "1"]
[TimeControl "40/6000+30:3000+30"]

1. d4 {[%emt 0:00:02]} e6 {[%emt 0:09:26]} 2. c4 {[%emt 0:00:46]} Nf6 {[%emt 0:00:26]} 3. Nc3 {[%emt 0:00:40]} Bb4 {[%emt 0:00:06]} 4. Qc2 {[%emt 0:00:17]} d6 {[%emt 0:00:06]} 5. a3 {[%emt 0:00:48]} Bxc3+ {[%emt 0:00:07]} 6. Qxc3 {[%emt 0:00:11]} O-O {[%emt 0:13:16]} 7. Bg5 {[%emt 0:01:44]} c5 {[%emt 0:00:52]} 8. Nf3 {[%emt 0:08:18]} h6 {[%emt 0:01:29]} 9. Bh4 {[%emt 0:03:39]} b6 {[%emt 0:05:34]} 10. Rd1 {[%emt 0:01:14]} Qe7 {[%emt 0:02:59]} 11. e3 {[%emt 0:08:07]} Bb7 {[%emt 0:02:07]} 12. Be2 {[%emt 0:00:56]} Nbd7 {[%emt 0:00:38]} 13. O-O {[%emt 0:00:15]} e5 {[%emt 0:04:32]} 14. Qc2 {[%emt 0:09:44]} Rfe8 {[%emt 0:07:17]} 15. d5 {[%emt 0:02:27]} Nf8 {[%emt 0:07:40]} 16. Nd2 {[%emt 0:10:20]} Ng6 {[%emt 0:00:26]} 17. Bxf6 {[%emt 0:11:38]} Qxf6 {[%emt 0:00:42]} 18. Ne4 {[%emt 0:01:26]} Qd8 {[%emt 0:05:38]} 19. f4 {[%emt 0:06:50]} exf4 {[%emt 0:20:18]} 20. exf4 {[%emt 0:00:11]} Qe7 {[%emt 0:00:04]} 21. Bd3 {[%emt 0:04:18]} Qf8 {[%emt 0:00:04]} 22. Ng3 {[%emt 0:02:29]} b5 {[%emt 0:09:33]} 23. cxb5 {[%emt 0:05:00]} Nh4 {[%emt 0:01:46]} 24. Be4 {[%emt 0:03:41]} g6 {[%emt 0:02:08]} 25. f5 {[%emt 0:01:43]} Qg7 {[%emt 0:01:35]} 26. Qf2 {[%emt 0:06:11]} Re5 {[%emt 0:03:30]} 27. Qf4 {[%emt 0:01:37]} g5 {[%emt 0:00:43]} 28. Qg4 {[%emt 0:00:21]} Rae8 {[%emt 0:00:46]} 29. f6 {[%emt 0:05:28]} Qh8 {[%emt 0:00:03]} 30. Qd7 {[%emt 0:02:35]} Bc8 {[%emt 0:00:34]} 31. Qxd6 {[%emt 0:00:07]} Bg4 {[%emt 0:00:02]} 32. Rde1 {[%emt 0:00:37]} Nf5 {[%emt 0:01:09]} 33. Bxf5 {[%emt 0:01:55]} Rxe1 {[%emt 0:00:27]} 34. Bxg4 {[%emt 0:01:07]} h5 {[%emt 0:00:23]} 35. Bd7 {[%emt 0:01:55]} 1-0

[Event "4NCL 2021-22"]
[Site "England"]
[Date "2022.02.13"]
[Round "4.60"]
[White "McClement, Andrew"]
[Black "Skettos, Nicolas"]
[Result "1-0"]
[ECO "D27"]
[WhiteElo "2221"]
[BlackElo "1940"]
[Annotator "NA"]
[PlyCount "53"]
[EventDate "2021.11.27"]
[EventType "team-tourn"]
[EventCountry "ENG"]
[SourceTitle "playchess.com"]
[Source "ChessBase"]
[SourceQuality "1"]
[TimeControl "40/6000+30:3000+30"]

1. Nf3 {[%emt 0:00:02]} d5 {[%emt 0:01:14]} 2. c4 {[%emt 0:07:04]} dxc4 {[%emt 0:00:08]} 3. e3 {[%emt 0:00:12]} Nf6 {[%emt 0:00:14]} 4. Bxc4 {[%emt 0:00:06]} e6 {[%emt 0:00:44]} 5. O-O {[%emt 0:00:56]} a6 {[%emt 0:01:19]} 6. a4 {[%emt 0:01:01]} c5 {[%emt 0:00:47]} 7. d4 {[%emt 0:01:30]} Nc6 {[%emt 0:03:38]} 8. Nc3 {[%emt 0:00:13]} cxd4 {[%emt 0:02:21]} 9. exd4 {[%emt 0:00:08]} Nb4 {[%emt 0:04:41]} 10. Bg5 {[%emt 0:24:58]} Be7 {[%emt 0:11:32]} 11. Qe2 {[%emt 0:04:12]} O-O {[%emt 0:04:19]} 12. Rfd1 {[%emt 0:02:11]} Re8 {[%emt 0:26:58]} 13. Ne5 {[%emt 0:03:32]} Nfd5 {[%emt 0:05:10]} 14. Bxe7 {[%emt 0:02:35]} Rxe7 {[%emt 0:10:21]} 15. Ne4 {[%emt 0:01:47]} h6 {[%emt 0:03:18]} 16. Ra3 {[%emt 0:01:33]} Rc7 {[%emt 0:05:48]} 17. Rg3 {[%emt 0:03:41]} Nf6 {[%emt 0:02:14]} 18. Nxf6+ {[%emt 0:03:40]} Qxf6 {[%emt 0:00:03]} 19. Qh5 {[%emt 0:13:12]} Kh7 {[%emt 0:09:02]} 20. Rf3 {[%emt 0:03:47]} Qg5 {[%emt 0:00:08]} 21. Qxg5 {[%emt 0:00:09]} hxg5 {[%emt 0:00:02]} 22. Rxf7 {[%emt 0:00:15]} Rxf7 {[%emt 0:00:28]} 23. Nxf7 {[%emt 0:00:02]} Kg6 {[%emt 0:01:07]} 24. Nd6 {[%emt 0:01:30]} Nd5 {[%emt 0:03:21]} 25. Re1 {[%emt 0:00:41]} Kf6 {[%emt 0:02:04]} 26. Bxd5 {[%emt 0:00:44]} exd5 {[%emt 0:00:01]} 27. Re8 {[%emt 0:00:09]} 1-0

[Event "4NCL 2021-22"]
[Site "England"]
[Date "2022.02.13"]
[Round "4.61"]
[White "Bansal, Rohan"]
[Black "Robertson, J Stuart"]
[Result "1-0"]
[ECO "D20"]
[WhiteElo "1971"]
[BlackElo "2174"]
[Annotator "ChessBase"]
[PlyCount "109"]
[EventDate "2021.11.27"]
[EventType "team-tourn"]
[EventCountry "ENG"]
[SourceTitle "playchess.com"]
[Source "ChessBase"]
[SourceQuality "1"]
[TimeControl "40/6000+30:3000+30"]

1. d4 {[%emt 0:00:01]} d5 {[%emt 0:03:41]} 2. c4 {[%emt 0:00:11]} dxc4 {[%emt 0:00:07]} 3. e4 {[%emt 0:00:08]} Nf6 {[%emt 0:00:12]} 4. Nc3 {[%emt 0:07:14]} e5 {[%emt 0:00:21]} 5. Nf3 {[%emt 0:03:30]} exd4 {[%emt 0:02:50]} 6. Qxd4 {[%emt 0:04:18]} Qxd4 {[%emt 0:00:54]} 7. Nxd4 {[%emt 0:00:11]} a6 {[%emt 0:00:33]} 8. Bxc4 {[%emt 0:20:32]} b5 {[%emt 0:04:31]} 9. Bb3 {[%emt 0:26:02]} c5 {[%emt 0:09:24]} 10. Nf3 {[%emt 0:01:28]} c4 {[%emt 0:04:11]} 11. Bc2 {[%emt 0:00:09]} Bc5 {[%emt 0:00:43]} 12. e5 {[%emt 0:17:09]} Nfd7 {[%emt 0:06:26]} 13. O-O {[%emt 0:04:18]} O-O {[%emt 0:01:45]} 14. Ne4 {[%emt 0:01:08]} Bb7 {[%emt 0:03:01]} 15. Rd1 {[%emt 0:02:43]} Bb6 {[%emt 0:04:19]} 16. Bf4 {[%emt 0:03:30]} h6 {[%emt 0:04:35]} 17. Nd6 {[%emt 0:03:34]} Bc6 {[%emt 0:03:53]} 18. a4 {[%emt 0:02:37]} Ra7 {[%emt 0:06:38]} 19. Nd4 {[%emt 0:01:48]} Bxd4 {[%emt 0:01:37]} 20. Rxd4 {[%emt 0:00:09]} Rc7 {[%emt 0:02:24]} 21. Nf5 {[%emt 0:04:06]} Rb7 {[%emt 0:05:59]} 22. Nd6 {[%emt 0:01:43]} Rc7 {[%emt 0:00:08]} 23. Nf5 {[%emt 0:01:17]} Rb7 {[%emt 0:00:13]} 24. Ne7+ {[%emt 0:01:26]} Kh8 {[%emt 0:00:08]} 25. e6 {[%emt 0:00:48]} Nc5 {[%emt 0:02:14]} 26. Bxb8 {[%emt 0:00:48]} Nxe6 {[%emt 0:03:40]} 27. Rdd1 {[%emt 0:00:59]} Rxe7 {[%emt 0:01:02]} 28. Bd6 {[%emt 0:00:06]} Ree8 {[%emt 0:00:04]} 29. Bxf8 {[%emt 0:00:16]} Rxf8 {[%emt 0:00:02]} 30. Rd6 {[%emt 0:00:16]} Rc8 {[%emt 0:00:19]} 31. axb5 {[%emt 0:00:24]} Bxb5 {[%emt 0:01:29]} 32. Bf5 {[%emt 0:01:15]} c3 {[%emt 0:01:21]} 33. bxc3 {[%emt 0:00:10]} Rxc3 {[%emt 0:00:01]} 34. Bxe6 {[%emt 0:00:12]} fxe6 {[%emt 0:00:03]} 35. Rxe6 {[%emt 0:00:27]} Rc7 {[%emt 0:00:03]} 36. h4 {[%emt 0:01:44]} Kh7 {[%emt 0:02:07]} 37. Kh2 {[%emt 0:00:49]} Rf7 {[%emt 0:00:08]} 38. f3 {[%emt 0:00:20]} Ra7 {[%emt 0:00:12]} 39. Rb6 {[%emt 0:00:33]} Re7 {[%emt 0:00:12]} 40. Rc1 {[%emt 0:01:05]} Rf7 {[%emt 0:00:48]} 41. Rc8 {[%emt 0:50:25]} h5 {[%emt 0:50:31]} 42. Rc5 {[%emt 0:00:35]} g6 {[%emt 0:00:04]} 43. Rc8 {[%emt 0:00:34]} Rd7 {[%emt 0:01:52]} 44. Rcb8 {[%emt 0:00:41]} Kg7 {[%emt 0:00:35]} 45. R8b7 {[%emt 0:00:06]} Rxb7 {[%emt 0:00:04]} 46. Rxb7+ {[%emt 0:00:12]} Kf6 {[%emt 0:00:03]} 47. g4 {[%emt 0:00:25]} hxg4 {[%emt 0:01:33]} 48. fxg4 {[%emt 0:00:07]} Ke5 {[%emt 0:00:27]} 49. Kg3 {[%emt 0:00:21]} Bd3 {[%emt 0:00:36]} 50. Ra7 {[%emt 0:02:05]} Kd6 {[%emt 0:06:31]} 51. Kf4 {[%emt 0:00:00]} Kc5 {[%emt 0:00:00]} 52. Ke3 {[%emt 0:00:00]} Bb5 {[%emt 0:00:00]} 53. h5 {[%emt 0:00:00]} gxh5 {[%emt 0:00:00]} 54. gxh5 {[%emt 0:00:00]} Kb6 {[%emt 0:00:00]} 55. Re7 {[%emt 0:00:00]} 1-0